Cogmind - Beta 14 @@@ ROGUE MODE // 2024.09.18 @ 22:19:42 // Winter2019/RPGLIKE Player: Fellun Result: Destroyed by L-31 Rogue with Katana Performance ------------- Evolutions (2) 1000 Regions Visited (3) 600 Robots Destroyed (74) 370 Value Destroyed (1915) 1915 Prototype IDs (3) 60 Alien Tech Used (0) 0 Bonus (88) 88 TOTAL SCORE: 4033 Bonus ------- High Alert Combat Kills 88 Cogmind --------- Core Integrity 0/700 Matter 331/450 Energy 376/455 System Corruption 0% Temperature Cool (0) Movement Rolling (120) Ox2 Location -8/Materials Parts ------- > --- POWER (2) -------- Heavy Ion Engine Deuterium Engine > --- PROPULSION (2) --- Wheel Compact Wheel > --- UTILITY (5) ------ Large Matter Pod Recoil Stabilizer Utility Shielding Hardened Medium Armor Plating Shield Generator > --- WEAPON (5) ------- Heavy Assault Rifle Heavy Assault Rifle Heavy Assault Rifle Heavy Assault Cannon > --- INVENTORY (2) ---- Recoil Stabilizer Light Armor Plating Peak State ------------ > --- POWER ------------ Heavy Ion Engine Deuterium Engine > --- PROPULSION ------- Wheel Compact Wheel > --- UTILITY ---------- Large Matter Pod Recoil Stabilizer Utility Shielding Hardened Medium Armor Plating Shield Generator > --- WEAPON ----------- Heavy Assault Rifle Heavy Assault Rifle Heavy Assault Rifle Heavy Assault Cannon > --- INVENTORY -------- Recoil Stabilizer Light Armor Plating [Rating: 30] Favorites ----------- Power Ion Engine Engine Ion Engine Propulsion Compact Wheel Wheel Compact Wheel Utility Large Matter Pod Device Recoil Stabilizer Storage Large Matter Pod Processor Targeting Computer Protection Utility Shielding Weapon Heavy Assault Rifle Energy Gun EM Pulse Gun Energy Cannon EM Pulse Cannon Ballistic Gun Heavy Assault Rifle Ballistic Cannon Heavy Assault Cannon Build | -11 -10 -9 -8 ------- Run | Yrd Mat Mat Mat Slots Evolved 10 | 4 1 3 2 Power 1 | 1 . . . Propulsion 1 | 1 . . . Utility 4 | 1 1 2 . Weapon 4 | 1 . 1 2 Parts Attached 43 | 6 9 17 11 Power 10 | 2 1 4 3 Engine 10 | 2 1 4 3 Core . | . . . . Reactor . | . . . . Propulsion 2 | 2 . . . Treads . | . . . . Leg . | . . . . Wheel 2 | 2 . . . Hover . | . . . . Flight . | . . . . Utility 12 | . 5 5 2 Device 3 | . 1 2 . Storage 2 | . 2 . . Processor 1 | . 1 . . Hackware . | . . . . Protection 6 | . 1 3 2 Artifact . | . . . . Weapon 19 | 2 3 8 6 Energy Gun 3 | 2 1 . . Energy Cannon 1 | . . . 1 Ballistic Gun 13 | . 2 8 3 Ballistic Cannon 2 | . . . 2 Launcher . | . . . . Special Weapon . | . . . . Impact Weapon . | . . . . Slashing Weapon . | . . . . Piercing Weapon . | . . . . Special Melee Weapon . | . . . . Unidentified Prototypes 1 | . . 1 . Parts Lost . | . . . . Power . | . . . . Propulsion . | . . . . Utility . | . . . . Weapon . | . . . . Highest Loss Streak . | . . . . To Critical Strikes . | . . . . Average Slot Usage (%) 97 | . 96 99 94 Engine 17 | . 24 16 14 Wheel 17 | . 24 16 14 Device 10 | . . 12 14 Storage 8 | . 9 8 7 Processor 3 | . 9 4 . Protection 11 | . 3 12 14 Energy Gun 1 | . 7 . . Ballistic Gun 22 | . 16 25 21 Ballistic Cannon 2 | . . . 5 Peak Build Rating 30 | 6 9 22 30 Average Rating 19 | 4 8 18 28 On Entrance 9 | . 6 9 22 Naked Turns . | . . . . Heaviest Build 53 | 14 19 36 53 Greatest Support 26 | 26 26 26 26 Greatest Overweight (x) 2 | 1 . 1 2 Average Overweight (x) . | . . . 1 Largest Inventory Capacity 2 | 2 2 2 2 Average Capacity 1 | 1 2 2 2 Most Carried 2 | . 2 2 2 Average Carried 1 | . 1 1 2 Final Capacity 2 | 2 2 2 2 Final Carried 2 | . 2 2 2 Class Distribution -------------------- 48% | Gunner 23% | Tank 21% | Mutant 7% | Scavenger-Gunner Dominant Class ---------------- Mutant | -10/Materials Tank | -9/Materials Gunner | -8/Materials Resources | -11 -10 -9 -8 ----------- Run | Yrd Mat Mat Mat Matter Collected 2172 | 260 368 569 975 Remotely . | . . . . Salvage Created 2183 | . 380 617 1186 Parts 150 | . 28 58 64 Haulers Intercepted 1 | . . . 1 Recyclers Shooed 1 | . . . 1 Parts Field Recycled . | . . . . Retrieved Matter . | . . . . Parts Self-Destructed . | . . . . Prevented . | . . . . Kills | -11 -10 -9 -8 ------- Run | Yrd Mat Mat Mat Combat Hostiles Destroyed 57 | . 13 17 27 Guns 48 | . 12 17 19 Cannons 8 | . . . 8 AOE 1 | . 1 . . Classes Destroyed 12 | . 4 3 5 Worker 2 | . . 1 1 Builder 4 | . . . 4 Tunneler 1 | . 1 . . Hauler 1 | . . . 1 Recycler 1 | . . . 1 Mechanic 1 | . . 1 . Watcher 7 | . 2 3 2 Swarmer 27 | . 9 7 11 Grunt 20 | . 4 5 11 Brawler 1 | . . . 1 Duelist 1 | . . . 1 Sentry 8 | . . 5 3 Best Kill Streak 9 | . 7 5 9 Combat Bots Only 7 | . 5 5 7 Max Kills in Single Turn 2 | . 1 2 2 Gunslinging 1 | . . 1 . Exploded 1 | . 1 . . Melee . | . . . . Uniques/NPCs Destroyed . | . . . . Combat | -11 -10 -9 -8 -------- Run | Yrd Mat Mat Mat Hostile Shots Fired 260 | . 63 80 117 Missed 70 | . 22 15 33 Damage Taken 2049 | . 456 752 841 Core 1462 | . 371 511 580 Absorbed by Shields 374 | . . 48 326 Redirected to Core 1240 | . 269 437 534 Redirected to Shielding 17 | . . 6 11 Core Remaining (%) 73 | 100 60 59 . Volleys Fired 166 | . 48 54 64 Largest 4 | . 2 3 4 Hottest 132 | . 90 69 132 Shots Fired 498 | . 92 162 244 Gun 443 | . 92 162 189 Cannon 55 | . . . 55 Launcher . | . . . . Special . | . . . . Kinetic 465 | . 64 162 239 Thermal 12 | . 12 . . Explosive . | . . . . Electromagnetic 21 | . 16 . 5 Robot Hit Streak 21 | . 9 21 7 Robot Miss Streak 8 | . 5 8 8 Penetration Max . | . . . . Secondary Targets 5 | . 2 2 1 Max Gunslinging Chain 1 | . 1 1 1 Shots Hit Robots 256 | . 43 98 115 Core Hits 114 | . 24 38 52 Critical Kills . | . . . . Critical Parts Destroyed . | . . . . Critical Strikes 6 | . 1 . 5 Burn 1 | . 1 . . Blast 5 | . . . 5 Melee Attacks . | . . . . Impact . | . . . . Slashing . | . . . . Piercing . | . . . . Sneak Attacks . | . . . . Combat Hostiles . | . . . . Follow-up Attacks . | . . . . Damage Inflicted 4913 | . 616 1226 3071 Guns 3392 | . 490 1226 1676 Cannons 1394 | . . . 1394 Explosions 126 | . 126 . . Melee . | . . . . Ramming 1 | . . . 1 Kinetic 4550 | . 275 1226 3049 Thermal 215 | . 215 . . Explosive . | . . . . Electromagnetic 147 | . 126 . 21 Impact . | . . . . Slashing . | . . . . Piercing . | . . . . Highest Corruption . | . . . . Average Corruption . | . . . . Corruption Purged . | . . . . Corruption Blocked . | . . . . Overload Shots . | . . . . Overflow Damage 77 | . . . 77 Projectiles 77 | . . . 77 Explosions . | . . . . Melee . | . . . . Knockbacks 6 | . . . 6 Impact . | . . . . Kinetic 6 | . . . 6 Secondary . | . . . . Self-Inflicted Damage 34 | . 34 . . Shots 1 | . 1 . . Rammed 1 | . . . 1 Targets Rammed 1 | . . . 1 Kicked . | . . . . Crushed . | . . . . Highest Temperature 174 | . 60 21 174 Average Temperature 50 | . 19 6 58 Received Heat Transfer 650 | . 141 231 278 Siege Activations . | . . . . Robots Corrupted . | . . . . Combat Hostiles . | . . . . Parts Fried 1 | . 1 . . Impact Corruptions . | . . . . Robots Melted . | . . . . Combat Hostiles . | . . . . Parts Melted 1 | . 1 . . Heat Transferred 483 | . 483 . . Parts Sabotaged . | . . . . Parts Stolen . | . . . . Parts Stripped . | . . . . Power Chain Reactions 1 | . 1 . . Alert | -11 -10 -9 -8 ------- Run | Yrd Mat Mat Mat Peak Influence 654 | . 201 444 654 Initial 4 | . . . 4 Average 196 | . 103 220 229 Maximum Alert Level 2 | . 1 2 2 Low Security (%) 49 | 100 80 35 45 Level 1 39 | . 19 56 33 Level 2 11 | . . 7 21 Level 3 . | . . . . Level 4 . | . . . . Level 5 . | . . . . High Security . | . . . . Max Security . | . . . . Squads Dispatched 5 | . . 1 4 Investigation 1 | . . . 1 Extermination . | . . . . Reinforcement 2 | . . 1 1 Assault 1 | . . . 1 Garrison 1 | . . . 1 Intercept . | . . . . Searches Triggered . | . . . . Construction Impeded 1 | . . . 1 Haulers Reinforced . | . . . . Active Scanning Responses . | . . . . Cargo Convoy Interrupts . | . . . . Stealth | -11 -10 -9 -8 --------- Run | Yrd Mat Mat Mat Distress Signals 4 | . 1 2 1 Communications Jammed . | . . . . Distress Signals . | . . . . Times Spotted 85 | . 19 25 41 Peak Tracking Total 6 | . 5 4 6 Tactical Retreats 2 | . . 1 1 Traps | -11 -10 -9 -8 ------- Run | Yrd Mat Mat Mat Traps Triggered 6 | . 1 . 5 Indirectly . | . . . . Trap Hack Attempts . | . . . . Triggered . | . . . . Disarmed . | . . . . Reprogrammed . | . . . . Reused . | . . . . Traps Extracted . | . . . . Installed . | . . . . Triggered . | . . . . Machines | -11 -10 -9 -8 ---------- Run | Yrd Mat Mat Mat Machines Disabled 8 | . 1 1 6 Max in Single Turn 1 | . 1 1 1 Garrison Access 1 | . . . 1 Machines Repaired . | . . . . Machines Dismantled . | . . . . Machines Sabotaged . | . . . . Overloaded Fab Kills . | . . . . Hacking | -11 -10 -9 -8 --------- Run | Yrd Mat Mat Mat Machines Accessed 20 | . 7 8 5 Terminals 20 | . 7 8 5 Fabricators . | . . . . Repair Stations . | . . . . Recycling Units . | . . . . Scanalyzers . | . . . . Garrison Access . | . . . . Total Hacks 66 | . 23 25 18 Successful 32 | . 11 13 8 Failed 34 | . 12 12 10 Catastrophic 7 | . 4 1 2 Database Lockouts . | . . . . Manual 66 | . 23 25 18 Terminals 66 | . 23 25 18 Fabricators . | . . . . Repair Stations . | . . . . Recycling Units . | . . . . Scanalyzers . | . . . . Garrison Access . | . . . . Terminal Hacks 13 | . 4 6 3 Prototype ID Bank 1 | . . 1 . Branch Access Points 2 | . . 1 1 Terminal Index 3 | . 1 1 1 Unreport Threat 7 | . 3 3 1 Fabricator Hacks . | . . . . Repair Station Hacks . | . . . . Recycling Unit Hacks . | . . . . Scanalyzer . | . . . . Garrison Access Hacks . | . . . . Unauthorized Hacks 19 | . 7 7 5 Terminals 19 | . 7 7 5 Botnet 19 | . 7 7 5 Fabricators . | . . . . Repair Stations . | . . . . Recycling Units . | . . . . Scanalyzers . | . . . . Garrison Access . | . . . . Data Cores Recovered . | . . . . Used . | . . . . Hacking Detections 20 | . 7 8 5 Full Trace Events 1 | . 1 . . Feedback Events . | . . . . Feedback Blocked . | . . . . Robot Schematics Acquired . | . . . . Robots Built . | . . . . Authchips . | . . . . Time . | . . . . Total Robot Build Rating . | . . . . Part Schematics Acquired . | . . . . Parts Built . | . . . . Authchips . | . . . . Time . | . . . . Total Part Build Rating . | . . . . Parts Repaired . | . . . . Time . | . . . . Parts Recycled . | . . . . Recycled Matter . | . . . . Retrieved Matter . | . . . . Retrieved Components . | . . . . Parts Scanalyzed . | . . . . Part Schematics Acquired . | . . . . Parts Damaged . | . . . . Bothacking | -11 -10 -9 -8 ------------ Run | Yrd Mat Mat Mat Used RIF Installer . | . . . . Robots Hacked . | . . . . Non-combat . | . . . . Combat . | . . . . Robot Hacks Applied . | . . . . Relay Couplers Released 1 | . . . 1 Machine Destruction 1 | . . . 1 Fabnet Peak Effective % . | . . . . Robots Rewired . | . . . . Allies Hacked . | . . . . Hacks Repelled . | . . . . Allies | -11 -10 -9 -8 -------- Run | Yrd Mat Mat Mat Total Allies . | . . . . Largest Group . | . . . . Highest-Rated Group . | . . . . Highest-Rated Ally . | . . . . Total Orders . | . . . . Ally Attacks . | . . . . Total Damage . | . . . . Kills . | . . . . Allies Corrupted . | . . . . Allies Melted . | . . . . Intel | -11 -10 -9 -8 ------- Run | Yrd Mat Mat Mat Robot Analysis Total . | . . . . Derelict Logs Recovered . | . . . . Drone Launches . | . . . . Drone Recoveries . | . . . . Exploration | -11 -10 -9 -8 ------------- Run | Yrd Mat Mat Mat Turns Passed 2225 | 45 434 888 858 Spaces Moved 1514 | 41 308 631 534 Core 5 | 5 . . . Treads . | . . . . Legs . | . . . . Wheels 1509 | 36 308 631 534 Hover . | . . . . Flight . | . . . . Fastest Speed 50 | 50 90 90 105 Average Speed 101 | 88 90 100 109 Slowest Speed 120 | 100 90 105 120 Overloaded Moves . | . . . . Propulsion Burnouts . | . . . . Robots Hopped . | . . . . Cave-ins Triggered . | . . . . Exploration Rate (%) 40 | 3 60 51 49 Regions Visited 3 Branch Regions . Pre-discovered Areas . | . . . . Known Exits Taken . | . . . . Unknown Exits Taken 3 | 1 1 1 . Scrap Searched . | . . . . Spaces Dug . | . . . . Terrain Destroyed 27 | . 2 . 25 Melee . | . . . . Projectile 25 | . . . 25 AOE 2 | . 2 . . Terrain Rammed . | . . . . Walls Destroyed . | . . . . Machines Disabled . | . . . . Actions | -11 -10 -9 -8 --------- Run | Yrd Mat Mat Mat Total 1830 | 46 377 777 630 Wait 48 | . . 39 9 Move 1511 | 40 307 630 534 Hop . | . . . . Pick Up 5 | . 4 1 . Fast Attach 23 | 6 5 3 9 Attach 3 | . 2 1 . Detach . | . . . . Swap 17 | . 2 13 2 Drop 21 | . 3 13 5 Fire 166 | . 48 54 64 Melee . | . . . . Ram 1 | . . . 1 Kick . | . . . . Crush . | . . . . Escape Stasis . | . . . . Rewire . | . . . . Trap . | . . . . Miscellaneous 35 | . 6 23 6 Route ------- -11/Scrapyard -10/Materials (discovered 2 exits: *Mat x2) -9/Materials (discovered 4 exits: *Mat x2 / *Min x2) -8/Materials (discovered 3 exits: [*Fac] / Sto x2) History --------- Turn | Location | Event 3 | -11/Scrapyard | Upgraded with Power slot (x1) 3 | -11/Scrapyard | Upgraded with Propulsion slot (x1) 3 | -11/Scrapyard | Upgraded with Utility slot (x1) 3 | -11/Scrapyard | Upgraded with Weapon slot (x1) 21 | -11/Scrapyard | Discovered new exit (range 14) 46 | -11/Scrapyard | Entered Materials 249 | -10/Materials | Discovered new exit (range 15) 313 | -10/Materials | Build established: Mutant 331 | -10/Materials | Reached level 2 344 | -10/Materials | Upgraded with Utility slot (x1) 430 | -10/Materials | Discovered new exit (range 16) 480 | -10/Materials | Entered another Materials area 482 | -9/Materials | Reached level 3 489 | -9/Materials | Upgraded with Utility slot (x1) 489 | -9/Materials | Upgraded with Weapon slot (x1) 543 | -9/Materials | Core integrity fell below 50% 799 | -9/Materials | Reached level 4 862 | -9/Materials | Upgraded with Utility slot (x1) 1053 | -9/Materials | Discovered new exit (range 7) 1237 | -9/Materials | Discovered new exit (range 5) 1240 | -9/Materials | Build established: Tank 1271 | -9/Materials | Identified exit to Mines 1368 | -9/Materials | Entered another Materials area 1370 | -8/Materials | Reached level 5 1432 | -8/Materials | Upgraded with Weapon slot (x1) 1466 | -8/Materials | Identified exit to Storage 1602 | -8/Materials | Core integrity fell below 50% 1605 | -8/Materials | Reached level 6 1643 | -8/Materials | Upgraded with Weapon slot (x1) 1713 | -8/Materials | Destroyed 7 combat bots 1746 | -8/Materials | Build established: Gunner 1798 | -8/Materials | Discovered new exit (range 17) 1886 | -8/Materials | Reached level 7 1984 | -8/Materials | Core integrity fell below 20% 2089 | -8/Materials | Garrison activated, responded to threat 2130 | -8/Materials | Reached level 8 2226 | -8/Materials | Destroyed by L-31 Rogue with Katana Last Messages --------------- payload. 02195_ G-50 Soldier unfolds itself. 02195_ B-36 Bruiser unfolds itself. 02195_ L-31 Rogue unfolds itself. 02195_ M-28 Smith unfolds itself. 02197_ K-01 Serf collects debris. 02205_ Slug penetrates L-31 Rogue. 02205_ L-31 Rogue destroyed. 02209_ U-05 Engineer builds a Wall. 02213_ U-05 Engineer destroyed. 02213_ R-06 Scavenger collects Melee Analysis Suite. 02216_ R-06 Scavenger collects Imp. Aluminum Leg. 02217_ Slug penetrates B-36 Bruiser. 02217_ B-36 Bruiser destroyed. 02220_ R-06 Scavenger collects Imp. Aluminum Leg. 02223_ U-05 Engineer builds a Wall. 02225_ Destroyed Imp. Aluminum Leg. Map ----- +----------------------------------------------------+ | | | ??????????????????????????????????????????????#### | | ?????????????????????????????????????????????? | | ????????????????????????????????????########?# | | ???????????????????????????????????# ! ?# "" | | ############?????????????######????# # """ | | # #????????????## %%%##???# # "" | | "" """ # < #???????##???#% %#???# """ """ # | | G"!" #^ #??##???# #??# #???# """ """ ##### | | """=+ ############## ##??# """ """ #???? | | % # ! %= ! #??# ?####? | | ! # !!= % %! #???? ???# #? | | # * % = %= #???###+##???# #? | | ! # %=##################!! #???# ##### ## | | ######## #????###?????????#%%%#???# | | ???????# #????????????????#%* #???# | | ???????# ########?????????# %%#???# ######### | | ???????# # "T" #?????????# * #???## ##???????? | | ???????# # #?????????# #????# #????????? | | ???????# #* """ ########??# #????# #????????? | | ???????# # """ #==!!//#??# #????# # ###?#### | | ???????# # """ #==!!//#??# #????# # #?# | | ???????# [%# # #??#==!#???## # #?#* | | ???????#% ###+#### ####%=!###### ##+#### | | ???????# * [= # | | ???????# @ !!! + | | ???????# %*lu ! # | | ???????############### =m#################+##+# | | ?????????????????????# !g####?# #??????# # | | ?????????????????????#r #????###??????# # | | ?????????????????????# #?????????????# #### | | ?????????????????????# #?????????????# ! #??? | | ?????????????????????; %#?????????????# #??? | | ????????????????????## %%#?????????????# #??? | | ?????????????????????#% #?????????????########??? | | ?????????????????????# ########????????????????? | | ?????????????????????# # #????????????????? | | ?????????????????????# # #????????????????? | | ?????????????????????# # "S #????????????????? | | ?????????????????????; # """ #????????????????? | | ?????????????????????# # "" #????????????????? | | ?????????????????????# / #????????????????? | | ?????????????????????#%" ###### #????????????????? | | ?????????????????????#" #???????????????????????? | | ?????????????????????# ##############??????????? | | ?????????????????????# ?????????? | | ?????????????????????# ?????????? | | ?????????????????????# = ?????????? | | ??????????###????????# *%! ?????????? | | ??????????? ???????# !%""" """ ?????????? | +----------------------------------------------------+ Best States ------------- Heat Dissipation 73 Energy Generation 23 Energy Capacity 455 Matter Stores 450 Matter Capacity 450 Sight Range 17 Terrain Scan Density 10 Armor Coverage 225 Utility Shielding 33 Evasion (%) 42 Targeting Accuracy 5 Recoil Reduction 4 Item Schematics ----------------- None Robot Schematics ------------------ None Fabricated ------------ Nothing Alien Tech Used ----------------- None Achievements -------------- None Challenges ------------ None RPGLIKE | -11 -10 -9 -8 --------- Run | Yrd Mat Mat Mat Levels Raised 7 | . 1 2 4 XP Earned 14545 | 3000 1645 3876 6024 XP Spent 11970 | 2960 800 3300 4910 Upgrades 26 | 9 1 3 13 Power Slot 1 | 1 . . . Propulsion Slot 1 | 1 . . . Utility Slot 4 | 1 1 2 . Weapon Slot 4 | 1 . 1 2 Core Integrity 2 | . . . 2 Heat Dissipation 8 | 3 . . 5 Inventory Capacity 2 | 2 . . . Sight Range 1 | . . . 1 KI Damage % 3 | . . . 3 Protomatter Created 347 | . 76 175 96 Integrity Restored 762 | . 135 504 123 Core 762 | . 135 504 123 Protomatter Decayed 34 | . 14 7 13 Game ------ Seed SuperquantumFocalShield Manual? 0 Play Time 00:21:24 Cumulative 649.3 hours Start 2024.09.18 @ 22:01:37 End 2024.09.18 @ 22:19:42 Sessions 1 Manual Loads 0 Difficulty Rogue Special Mode Winter2019/RPGLIKE Game No. 27 Rogue 15 Adventurer 9 Explorer 3 Win Type - Total 4 Types 4/0/0/0/0/0/0/0/0 Lore% 29 Gallery% 42 Achievement% 52 Wizard Run 0 Options --------- Layout 2 ASCII 0 Keyboard 0 Movement Mouse Keybinds 0 Fullscreen 2 Font 24/Smallcaps Map View 50x44 Zoom Use 0% Tactical HUD 1 Map Filters NONE Filters NONE Steam 1 RUN: b6e7c5f2-0d8e-46e9-9189-71d9a3b7965c